bitfinex/quotes_SOLUSD_20220117
["timestamp","ask_amount","ask_price","bid_price","bid_amount"]
[1642432268883,16.52043503,142.33,142.19,16.5456]
[1642432269084,47.37,142.35,142.19,16.5456]
[1642432269712,90.02911961,142.46,142.2,1.78691264]
[1642432269885,47.4442,142.43,142.25,10.5394]
[1642432270087,457.0705539,142.39,142.26,48.93513814]
[1642432270287,457.0705539,142.39,142.26,49.18513814]
[1642432270288,458.50956706,142.39,142.26,49.18513814]
[1642432270886,1.43901316,142.39,142.26,49.18513814]
[1642432271686,1.43901316,142.39,142.3,10.5377]
[1642432271885,1.43901316,142.39,142.26,35.3754]
[1642432272086,3.19521274,142.39,142.2,55.2674]
[1642432272287,3.19521274,142.39,142.21,6.0]
[1642432272686,0.25,142.38,142.21,6.0]
[1642432272988,0.25,142.38,142.22,38.71209119]
[1642432273387,0.25,142.38,142.26,10.5405]
[1642432273587,1.75619958,142.42,142.27,0.25]
[1642432274387,26.15328331,142.41,142.27,0.25]
[1642432274788,26.15328331,142.41,142.3,10.5373]
[1642432274789,0.25,142.4,142.3,10.5373]
[1642432274990,0.25,142.4,142.3,54.05246382]
[1642432275188,0.25,142.4,142.3,10.5373]
[1642432275390,26.15328331,142.41,142.25,35.1286]
[1642432275592,26.15328331,142.41,142.25,41.1286]
[1642432276003,95.93328331,142.41,142.25,41.1286]
[1642432276191,95.93328331,142.41,142.26,46.95468714]
[1642432276593,95.93328331,142.41,142.29,44.18227164]
[1642432276795,95.93328331,142.41,142.26,46.95468714]
[1642432276796,0.25,142.4,142.26,0.25]
[1642432277092,1.75619958,142.39,142.25,6.0]
[1642432277322,1.75619958,142.39,142.23,28.9658]
[1642432277723,1.18088528,142.38,142.24,54.5160886]
[1642432278324,11.72198528,142.38,142.24,54.5160886]
[1642432278523,1.75619958,142.41,142.25,1.53691264]
[1642432278722,1.75619958,142.41,142.25,9.81191264]
[1642432278922,23.1886,142.43,142.25,16.07191264]
[1642432279124,23.1886,142.43,142.26,71.31691264]
[1642432279324,23.1886,142.43,142.26,77.31691264]
[1642432279523,36.25362689,142.42,142.29,10.5379]
[1642432279723,36.25362689,142.42,142.3,47.82683877]
[1642432279923,23.1886,142.43,142.3,48.07683877]
[1642432280123,23.1886,142.43,142.3,47.82683877]
[1642432280422,23.1886,142.43,142.31,0.25]
[1642432281025,23.1886,142.43,142.33,10.5357]
[1642432281228,23.1886,142.43,142.34,38.38904931]
[1642432281426,23.1886,142.43,142.34,38.63904931]
[1642432281826,50.52527065,142.44,142.34,38.63904931]
[1642432282226,10.5355,142.46,142.34,49.17394931]
[1642432282427,423.23322682,142.49,142.34,49.17394931]
[1642432282926,423.23322682,142.49,142.34,50.71086195]
[1642432283429,24.68091482,142.49,142.34,50.71086195]
[1642432283826,0.25,142.48,142.34,50.71086195]
[1642432284928,0.25,142.48,142.35,69.78]
[1642432285129,0.25,142.48,142.38,10.5307]
[1642432285329,49.1095,142.51,142.39,0.25]
[1642432285529,59.6405,142.51,142.39,0.25]
[1642432285730,20.58530702,142.5,142.39,0.25]
[1642432287230,20.58530702,142.5,142.37,0.25]
[1642432287631,31.11750702,142.5,142.38,10.532]
[1642432287830,31.11750702,142.5,142.39,0.25]
[1642432288433,31.11750702,142.5,142.38,10.532]
[1642432288731,32.8737066,142.5,142.29,12.40712195]
[1642432288931,23.4647,142.49,142.29,3.96712195]
[1642432289131,10.5381,142.43,142.3,70.03]
[1642432289332,10.5381,142.43,142.3,69.78]
[1642432289530,6.74886157,142.42,142.31,38.02296034]
[1642432289732,13.56586157,142.42,142.29,3.96712195]
[1642432290133,15.32206115,142.42,142.29,3.96712195]
[1642432290733,10.5382,142.41,142.3,34.83420424]
[1642432291134,46.4151,142.45,142.3,34.83420424]
[1642432291334,46.4151,142.45,142.31,0.25]
[1642432291934,10.5372,142.43,142.31,0.25]
[1642432292936,10.5388,142.41,142.3,1.53691264]
[1642432293137,10.5388,142.41,142.28,10.5395]
[1642432293337,10.5388,142.41,142.28,16.5395]
[1642432294138,4.97129478,142.4,142.28,52.49976879]
[1642432294339,10.5397,142.39,142.28,52.49976879]
[1642432294940,23.755,142.43,142.31,10.5375]
[1642432295339,34.2922,142.43,142.32,0.25]
[1642432295939,23.9215375,142.42,142.32,40.50294564]
[1642432296340,34.4593375,142.42,142.29,10.5388]
[1642432296541,0.25,142.41,142.28,1.53691264]
[1642432296740,0.25,142.41,142.29,0.25]
[1642432297241,0.25,142.41,142.29,40.28290261]
[1642432298641,10.5402,142.39,142.29,50.82200261]
[1642432298844,13.95283109,142.39,142.29,50.82200261]
[1642432300042,13.95283109,142.39,142.29,0.25]
[1642432300243,13.95283109,142.39,142.28,0.25]
[1642432301045,13.95283109,142.39,142.28,46.29346315]
[1642432301247,0.25,142.38,142.28,46.29346315]
[1642432301447,10.7906,142.38,142.28,46.29346315]
[1642432302143,10.7906,142.38,142.28,56.83326315]
[1642432302544,10.5406,142.38,142.28,56.83326315]
[1642432303348,69.78,142.42,142.28,56.83326315]
[1642432303551,23.755,142.43,142.28,65.06927242]
[1642432303748,23.755,142.43,142.28,81.44453223]
[1642432303949,23.755,142.43,142.29,69.78]
[1642432304448,23.755,142.43,142.34,38.88024098]
[1642432304646,23.1472,142.45,142.34,46.80924098]
[1642432304846,23.1472,142.45,142.35,0.25]
[1642432305046,23.5478,142.46,142.35,0.25]
[1642432305251,3.51929743,142.5,142.36,1.54600927]
[1642432305447,531.39530624,142.48,142.37,40.1509076]
[1642432305648,531.39530624,142.48,142.37,47.5719076]
[1642432306647,0.25,142.47,142.39,10.5312]
[1642432306847,531.39530624,142.48,142.4,49.64680726]
[1642432307048,531.39530624,142.48,142.4,58.25680726]
[1642432307248,21.09546972,142.48,142.4,64.25680726]
[1642432307646,47.0586,142.52,142.4,64.25680726]
[1642432307847,57.5892,142.52,142.4,74.78760726]
[1642432308349,47.0586,142.52,142.41,0.25]
[1642432309648,47.0586,142.52,142.43,10.5289]
[1642432309848,23.73097467,142.53,142.44,35.93778107]
[1642432310050,23.73097467,142.53,142.44,35.68778107]
[1642432310455,69.78,142.56,142.44,35.68778107]
[1642432310653,85.03199743,142.57,142.44,46.21578107]
[1642432310852,81.5127,142.57,142.44,46.21578107]
[1642432311083,83.26889958,142.57,142.44,46.21578107]
[1642432311283,83.26889958,142.57,142.44,10.528]
[1642432311486,83.26889958,142.57,142.4,6.0]
[1642432311686,70.03,142.56,142.4,6.0]
[1642432311884,10.5291,142.54,142.42,10.529]
[1642432312285,19.78124167,142.53,142.42,10.529]
[1642432312886,30.31074167,142.53,142.4,10.5305]
[1642432313085,32.06694125,142.53,142.4,10.5305]
[1642432313284,32.06694125,142.53,142.4,16.5305]
[1642432313786,33.88007435,142.53,142.4,16.5305]
[1642432315690,1.8131331,142.52,142.4,16.5305]
[1642432315987,10.5308,142.51,142.4,16.5305]
[1642432316187,7.55292692,142.5,142.4,16.5305]
[1642432316889,0.25,142.49,142.4,16.5305]
[1642432317490,0.25,142.49,142.37,35.1015]
[1642432317690,0.25,142.49,142.39,6.0]
[1642432317890,70.03,142.49,142.38,16.5321]
[1642432318092,70.03,142.49,142.39,0.25]
[1642432319595,80.5624,142.49,142.39,10.5317]
[1642432320396,70.03,142.49,142.4,42.83515795]
[1642432320600,70.03,142.49,142.4,53.36615795]
[1642432320800,36.3557331,142.51,142.4,53.36615795]
[1642432321009,36.3557331,142.51,142.41,0.25]
[1642432321010,25.8244331,142.51,142.41,0.25]
[1642432321599,1.8131331,142.51,142.43,10.5286]
[1642432321802,1.8131331,142.51,142.44,48.60432092]
[1642432321998,1.8131331,142.51,142.44,48.35432092]
[1642432322197,24.8165,142.52,142.44,48.35432092]
[1642432322397,24.8165,142.52,142.41,0.25]
[1642432322598,35.3466,142.52,142.37,59.9496]
[1642432322998,37.10279958,142.52,142.37,24.8495]
[1642432323399,61.68419958,142.52,142.38,35.03643508]
[1642432323799,61.68419958,142.52,142.37,24.8495]
[1642432324100,69.74319958,142.52,142.36,10.5335]
[1642432324509,2.0631331,142.51,142.36,10.5335]
[1642432324700,10.5321,142.49,142.37,49.33179584]
[1642432325904,9.46815835,142.5,142.37,59.86439584]
[1642432326102,9.46815835,142.5,142.38,0.25]
[1642432326501,1.8131331,142.5,142.38,0.25]
[1642432326702,1.8131331,142.51,142.38,1.79600927]
[1642432326904,1.8131331,142.51,142.38,7.79600927]
[1642432327101,1.8131331,142.51,142.38,77.57600927]
[1642432327705,75.3511169,142.52,142.41,42.09416626]
[1642432327901,75.3511169,142.52,142.42,0.25]
[1642432328302,49.3979,142.52,142.42,0.25]
[1642432328701,1.8131331,142.53,142.42,0.25]
[1642432328902,1.8131331,142.54,142.43,10.5285]
[1642432329100,1.8131331,142.54,142.43,12.07741571]
[1642432329301,1.8131331,142.54,142.44,115.21259725]
[1642432330001,1.8131331,142.55,142.44,116.76151296]
[1642432330603,6.87012738,142.55,142.47,10.5249]
[1642432331001,6.87012738,142.55,142.47,57.70476968]
[1642432331403,5.05699428,142.55,142.44,0.25]
[1642432331602,15.58429428,142.55,142.45,10.5268]
[1642432331801,15.58429428,142.55,142.46,0.25]
[1642432332005,10.5273,142.55,142.46,0.25]
[1642432332911,30.19155238,142.55,142.46,0.25]
[1642432333111,10.5273,142.55,142.43,48.52925425]
[1642432333311,1.8131331,142.56,142.46,10.5265]
[1642432333511,1.8131331,142.55,142.46,10.5265]
[1642432333713,1.8131331,142.55,142.47,0.25]
[1642432334112,1.8131331,142.55,142.47,49.84605166]
[1642432334315,1.8131331,142.55,142.47,51.39241111]
[1642432334517,1.8131331,142.55,142.48,10.5251]
[1642432335416,1.8131331,142.55,142.49,0.25]
[1642432335615,1.8131331,142.55,142.5,10.5225]
[1642432336415,1.8131331,142.58,142.51,40.57875272]
[1642432336615,1.8131331,142.58,142.51,51.10105272]
[1642432336818,1.8131331,142.58,142.52,0.25]
[1642432337743,1.8131331,142.58,142.53,10.5211]
[1642432338145,1.8131331,142.58,142.54,0.25]
[1642432338544,5.33243053,142.61,142.54,0.25]
[1642432338744,1.8131331,142.61,142.54,0.25]
[1642432339648,1.8131331,142.61,142.53,10.5211]
[1642432339849,35.85712799,142.62,142.51,10.5225]
[1642432340646,35.85712799,142.62,142.52,44.91756731]
[1642432340849,1.8131331,142.61,142.52,44.91756731]
[1642432341050,1.8131331,142.61,142.53,10.5212]
[1642432341251,1.8131331,142.61,142.53,18.3772]
[1642432341854,61.41571677,142.64,142.53,18.3772]
[1642432342948,12.3345331,142.63,142.53,10.7712]
[1642432344853,0.25,142.62,142.53,10.7712]
[1642432345155,0.25,142.62,142.53,10.5212]
[1642432346654,0.25,142.62,142.54,0.25]
[1642432347555,2.92128492,142.61,142.54,0.25]
[1642432347753,2.92128492,142.61,142.53,0.25]
[1642432348655,13.44458492,142.61,142.53,0.25]
[1642432349357,0.25,142.6,142.53,0.25]
[1642432350757,12.3348331,142.63,142.53,0.25]
[1642432350959,2.0631331,142.62,142.53,0.25]
[1642432351556,2.0631331,142.62,142.53,10.7714]
[1642432351959,1.8131331,142.62,142.53,10.7714]
[1642432352158,1.8131331,142.62,142.53,82.10066893]
[1642432352557,1.8131331,142.62,142.53,12.32066893]
[1642432352761,25.6271331,142.65,142.53,12.32066893]
[1642432352960,25.6271331,142.65,142.53,20.54766893]
[1642432353159,25.6271331,142.65,142.53,96.32766893]
[1642432353560,23.814,142.65,142.53,96.32766893]
[1642432353759,1.8131331,142.66,142.53,96.58766893]
[1642432355265,1.8131331,142.66,142.53,95.58766893]
[1642432357363,1.8131331,142.66,142.57,10.5161]
[1642432357563,1.8131331,142.65,142.57,10.5161]
[1642432357765,1.8131331,142.65,142.58,0.25]
[1642432358363,1.8131331,142.65,142.6,10.5159]
[1642432358663,1.8131331,142.66,142.6,10.5159]
[1642432358863,1.8131331,142.66,142.61,0.25]
[1642432359065,1.8131331,142.66,142.62,37.37986555]
[1642432359464,1.8131331,142.67,142.62,37.37986555]
[1642432361670,1.8131331,142.67,142.63,0.25]
[1642432362069,1.8131331,142.67,142.58,1.54926893]
[1642432362470,24.2115,142.73,142.58,1.54926893]
[1642432362471,1.8131331,142.68,142.58,1.54926893]
[1642432362874,0.25,142.67,142.58,12.06696893]
[1642432363072,0.25,142.67,142.59,45.76058728]
[1642432363271,10.5184,142.67,142.59,45.76058728]
[1642432363494,1.8131331,142.66,142.59,45.76058728]
[1642432363695,2.0631331,142.66,142.59,45.76058728]
[1642432363896,1.8131331,142.66,142.59,45.76058728]
[1642432364497,1.8131331,142.66,142.6,0.25]
[1642432364997,1.8131331,142.65,142.6,0.25]
[1642432365998,1.8131331,142.65,142.58,10.5172]
[1642432366200,1.8131331,142.65,142.56,26.06586893]
[1642432366399,1.8131331,142.65,142.57,0.25]
[1642432366598,1.8131331,142.66,142.57,0.25]
[1642432366799,0.25,142.65,142.57,0.25]
[1642432367000,0.25,142.65,142.57,47.89327193]
[1642432367199,1.8131331,142.66,142.57,47.89327193]
[1642432367600,1.8131331,142.64,142.57,58.41167193]
[1642432368999,1.8131331,142.64,142.57,59.96094086]
[1642432373107,1.8131331,142.65,142.57,59.96094086]
[1642432373807,1.8131331,142.65,142.58,8.44]
[1642432374206,1.8131331,142.64,142.59,0.25]
[1642432374407,1.8131331,142.64,142.59,8.69]
[1642432376311,1.8131331,142.63,142.59,8.69]
[1642432377311,1.8131331,142.64,142.59,19.2069]
[1642432378319,1.8131331,142.65,142.59,19.2069]
[1642432378716,1.8131331,142.65,142.59,8.69]
[1642432379715,1.8131331,142.64,142.59,8.69]
[1642432381517,1.8131331,142.64,142.59,19.2068]
[1642432382116,1.8131331,142.63,142.59,19.2068]
[1642432382517,1.8131331,142.63,142.59,20.75606893]
[1642432383419,1.8131331,142.64,142.59,90.53606893]
[1642432384017,1.8131331,142.65,142.59,90.53606893]
[1642432385319,1.8131331,142.65,142.59,20.75606893]
[1642432385518,1.8131331,142.64,142.59,20.75606893]
[1642432386417,1.8131331,142.65,142.59,20.75606893]
[1642432386717,1.8131331,142.65,142.6,69.78]
[1642432386920,3.31e-05,142.65,142.61,80.2918]
[1642432387120,3.31e-05,142.65,142.61,20.75119198]
[1642432387318,3.31e-05,142.65,142.62,1.54939198]
[1642432387718,3.51929743,142.68,142.63,8.69]
[1642432387920,3.51929743,142.7,142.64,45.48472031]
[1642432388320,3.51929743,142.7,142.65,10.7626]
[1642432388922,7.5057921,142.72,142.65,10.7626]
[1642432389746,7.5057921,142.72,142.65,20.75211504]
[1642432390348,7.5057921,142.72,142.65,27.01211504]
[1642432390550,7.5057921,142.72,142.67,10.5066]
[1642432390749,4.59166381,142.73,142.68,8.69]
[1642432390949,4.59166381,142.73,142.68,10.23951504]
[1642432391150,4.59166381,142.73,142.69,49.16733654]
[1642432391353,4.59166381,142.73,142.69,63.60733654]
[1642432391552,4.59166381,142.77,142.69,63.60733654]
[1642432391749,0.25,142.76,142.69,63.60733654]
[1642432392550,0.25,142.76,142.69,74.11363654]
[1642432392951,0.25,142.78,142.69,74.11363654]
[1642432396456,10.7607,142.78,142.69,8.44]
[1642432396654,1.75619958,142.77,142.65,8.44]
[1642432396854,0.25,142.76,142.65,6.0]
[1642432397053,0.25,142.76,142.62,22.6688]
[1642432397255,23.9978,142.76,142.62,22.6688]
[1642432397454,1.22759365,142.75,142.63,41.13482005]
[1642432397855,0.25,142.74,142.63,41.13482005]
[1642432398056,0.25,142.74,142.64,0.25]
[1642432398458,0.25,142.74,142.63,41.13482005]
[1642432398658,10.7644,142.74,142.63,51.64852005]
[1642432399859,10.7644,142.74,142.64,0.25]
[1642432401765,10.7644,142.74,142.64,10.7632]
[1642432402162,0.25,142.74,142.64,10.7632]
[1642432402363,0.25,142.75,142.64,10.7632]
[1642432403663,10.7629,142.75,142.64,10.7632]
[1642432403864,4.43362735,142.74,142.64,0.25]
[1642432404267,0.25,142.73,142.63,41.13482005]
[1642432404665,69.78,142.72,142.63,41.13482005]
[1642432404866,0.25,142.71,142.59,8.44]
[1642432405065,0.25,142.71,142.6,10.5158]
[1642432405865,0.25,142.71,142.61,43.75918969]
[1642432406368,0.25,142.71,142.62,0.25]
[1642432406569,10.7659,142.71,142.62,0.25]
[1642432407769,80.5459,142.71,142.62,0.25]
[1642432408369,10.7659,142.71,142.62,0.25]
[1642432408568,24.8679,142.72,142.62,0.25]
[1642432408968,24.8679,142.72,142.62,1.79951504]
[1642432409673,24.8679,142.72,142.62,12.31411504]
[1642432410472,24.8679,142.72,142.62,26.28511504]
[1642432411772,24.8679,142.72,142.62,32.28511504]
[1642432412071,24.8679,142.72,142.62,102.06511504]
[1642432414876,22.596,142.76,142.62,102.06511504]
[1642432415072,22.596,142.76,142.62,135.42874452]
[1642432415275,0.25,142.75,142.63,11.30371146]
[1642432415474,0.25,142.75,142.64,69.78]
[1642432415673,0.25,142.75,142.66,10.5089]
[1642432415875,22.596,142.76,142.67,42.88215989]
[1642432417703,0.25,142.75,142.69,10.5094]
[1642432426114,4.59166381,142.8,142.72,10.5073]
[1642432426314,4.59166381,142.8,142.73,0.25]
[1642432427016,4.59166381,142.8,142.73,44.37198555]
[1642432427415,0.25,142.79,142.73,54.87818555]
[1642432428618,50.56006381,142.84,142.73,54.87818555]
[1642432429618,76.10680033,142.84,142.73,54.87818555]
[1642432430018,0.25,142.83,142.73,54.87818555]
[1642432430819,71.51513652,142.84,142.73,54.87818555]
[1642432431020,71.51513652,142.84,142.73,63.31818555]
[1642432432221,0.25,142.83,142.73,63.31818555]
[1642432433929,0.25,142.83,142.73,69.31818555]
[1642432434128,0.25,142.83,142.73,63.31818555]
[1642432434758,45.9684,142.84,142.73,63.31818555]
[1642432434960,45.9684,142.84,142.73,69.90218555]
[1642432435158,45.9684,142.84,142.73,75.90218555]
[1642432435561,45.9684,142.84,142.74,69.78]
[1642432435761,1.60461959,142.88,142.78,10.5017]
[1642432435960,1.60461959,142.88,142.78,17.6017]
[1642432436160,1.60461959,142.88,142.79,0.25]
[1642432436561,1.60461959,142.88,142.79,45.02283826]
[1642432437562,1.60461959,142.88,142.8,10.5015]
[1642432437763,1.60461959,142.88,142.81,0.25]
[1642432438964,1.60461959,142.88,142.8,0.25]
[1642432439564,1.60461959,142.88,142.81,10.5007]
[1642432439767,1.60461959,142.88,142.82,0.25]
[1642432441567,1.60461959,142.88,142.81,0.25]
[1642432441767,1.60461959,142.88,142.8,8.544]
[1642432441967,24.844,142.89,142.8,8.544]
[1642432442169,23.2878,142.92,142.82,10.4999]
[1642432442368,23.2878,142.92,142.83,0.25]
[1642432442569,23.2878,142.92,142.83,8.537]
[1642432443169,23.2878,142.92,142.84,43.69372307]
[1642432443371,60.80196381,142.95,142.85,0.25]
[1642432443570,33.2628,142.95,142.85,10.7479]
[1642432443772,0.25,142.94,142.85,10.7479]
[1642432447575,1.75619958,142.93,142.74,44.35608433]
[1642432447776,47.31,142.92,142.81,45.3973714]
[1642432448176,47.31,142.92,142.81,51.3973714]
[1642432448576,47.31,142.92,142.81,45.3973714]
[1642432448778,47.31,142.92,142.82,0.25]
[1642432449177,47.31,142.92,142.83,10.4993]
[1642432449377,47.31,142.92,142.84,0.25]
[1642432450077,47.31,142.92,142.84,10.7485]
[1642432450276,0.25,142.92,142.84,10.7485]
[1642432450680,0.25,142.94,142.84,10.7485]
[1642432452283,10.7487,142.94,142.84,10.7485]
[1642432452879,0.25,142.94,142.84,10.7485]
[1642432455910,10.7489,142.94,142.84,10.7485]
[1642432459923,0.25,142.94,142.84,19.5515]
[1642432460518,22.7006,142.95,142.84,19.5515]
[1642432460722,31.0673,142.98,142.84,19.5515]
[1642432460920,31.0673,142.98,142.84,27.9915]
[1642432461120,31.0673,142.98,142.84,33.9915]
[1642432461320,31.0673,142.98,142.84,27.9915]
[1642432461520,66.94775158,142.98,142.88,10.495]
[1642432461728,31.0673,142.98,142.88,16.15]
[1642432461922,26.13817927,143.0,142.89,0.25]
[1642432463420,26.13817927,143.0,142.89,8.69]
[1642432463620,26.13817927,143.0,142.9,10.494]
[1642432463822,26.13817927,143.0,142.91,48.08278131]
[1642432465521,0.25,142.99,142.92,10.4924]
[1642432465723,26.13817927,143.0,142.92,10.4924]
[1642432466122,69.78,142.99,142.89,8.44]
[1642432466323,78.22,142.99,142.85,43.4221]
[1642432466623,1.75619958,142.98,142.88,10.4952]
[1642432467025,20.13326424,142.97,142.88,10.4952]
[1642432467226,20.13326424,142.97,142.83,33.128]
[1642432467423,71.53619958,142.96,142.83,33.128]
[1642432467624,71.53619958,142.96,142.84,10.4973]
[1642432467824,2.00619958,142.95,142.82,22.5247]
[1642432468224,1.75619958,142.94,142.8,38.68882674]
[1642432468426,10.19619958,142.94,142.8,38.68882674]
[1642432468625,10.5021,142.9,142.8,44.68882674]
[1642432468924,0.25,142.89,142.8,38.68882674]
[1642432470630,10.5019,142.88,142.81,0.25]
[1642432470829,10.5019,142.88,142.77,8.44]
[1642432471027,10.5019,142.88,142.73,120.1872]
[1642432471028,12.25809958,142.88,142.73,120.1872]
[1642432471233,12.25809958,142.88,142.74,14.44]
[1642432471428,12.25809958,142.88,142.74,8.44]
[1642432471429,2.00619958,142.87,142.74,8.44]
[1642432471631,10.5057,142.84,142.74,8.44]
[1642432471828,0.25,142.83,142.74,58.07428707]
[1642432472428,0.25,142.83,142.74,49.63428707]
[1642432473028,10.5065,142.82,142.74,49.63428707]
[1642432473529,0.25,142.81,142.74,49.63428707]
[1642432473730,31.4538,142.86,142.74,49.63428707]
[1642432474129,0.25,142.85,142.74,55.20928707]
[1642432474729,10.7545,142.85,142.75,0.25]
[1642432474931,10.7545,142.85,142.75,10.7544]
[1642432475531,1.75619958,142.84,142.75,0.25]
[1642432475734,1.75619958,142.84,142.71,8.44]
[1642432475931,0.25,142.83,142.71,8.44]
[1642432476131,0.25,142.83,142.72,0.25]
[1642432476333,10.5069,142.82,142.71,10.5069]
[1642432476632,10.5069,142.82,142.72,37.38763546]
[1642432476833,0.25,142.81,142.72,37.38763546]
[1642432477832,0.25,142.83,142.72,37.38763546]
[1642432478431,0.25,142.83,142.73,0.25]
[1642432478631,10.5078,142.8,142.73,0.25]
[1642432480635,10.5078,142.8,142.69,24.9485]
[1642432480836,10.5078,142.8,142.67,23.1614]
[1642432480837,0.25,142.79,142.67,23.1614]
[1642432481035,10.5105,142.77,142.67,23.1614]
[1642432481237,10.5105,142.77,142.66,23.5829]
[1642432481638,10.5105,142.77,142.69,45.50826359]
[1642432482336,10.5105,142.77,142.66,23.5829]
[1642432482337,0.25,142.76,142.66,23.5829]
[1642432482537,0.25,142.76,142.63,3.72607294]
[1642432482538,10.5125,142.74,142.64,3.65529842]
[1642432482738,10.5125,142.74,142.63,3.72607294]
[1642432482939,0.25,142.73,142.63,3.72607294]
[1642432483341,0.25,142.73,142.64,36.44158335]
[1642432483545,10.5137,142.72,142.64,36.44158335]
[1642432483842,0.25,142.71,142.65,0.25]
[1642432484647,10.7645,142.71,142.65,0.25]
[1642432485245,0.25,142.71,142.65,0.25]
[1642432485648,0.25,142.74,142.65,0.25]
[1642432486248,0.25,142.74,142.64,36.44158335]
[1642432486249,10.5133,142.73,142.64,36.44158335]
[1642432486646,0.25,142.72,142.64,36.44158335]
[1642432487148,0.25,142.72,142.65,0.25]
[1642432487572,0.25,142.72,142.61,58.4211]
[1642432487772,10.515,142.71,142.62,0.25]
[1642432488175,0.25,142.7,142.59,18.9558]
[1642432488581,0.25,142.7,142.6,36.41645945]
[1642432488776,10.5165,142.69,142.6,46.93185945]
[1642432488975,0.25,142.7,142.6,46.93185945]
[1642432489376,0.25,142.72,142.6,55.37185945]
[1642432489577,47.8644,142.73,142.6,55.37185945]
[1642432489775,47.8644,142.73,142.61,0.25]
[1642432490176,58.3777,142.73,142.63,10.5131]
[1642432490377,58.3777,142.73,142.64,0.25]
[1642432490778,8.44,142.77,142.64,0.25]
[1642432490976,8.44,142.8,142.64,7.063]
[1642432491178,10.5104,142.77,142.65,69.78]
[1642432491480,8.44,142.82,142.66,0.25]
[1642432491676,20.17592051,142.82,142.67,69.78]
[1642432491880,20.17592051,142.82,142.68,35.2744]
[1642432492481,10.5068,142.82,142.69,20.5119466]
[1642432492879,10.5068,142.82,142.7,0.25]
[1642432493079,10.5068,142.82,142.7,1.8145466]
[1642432493279,48.1001,142.84,142.7,8.0745466]
[1642432493480,48.1001,142.84,142.72,118.24931918]
[1642432493779,438.90326699,142.87,142.73,10.2545466]
[1642432493984,10.5024,142.88,142.73,16.7985466]
[1642432494178,10.5024,142.88,142.74,1.5645466]
[1642432494380,10.5024,142.88,142.75,8.69]
[1642432494780,0.25,142.87,142.75,78.47]
[1642432494986,10.7526,142.87,142.77,10.5024]
[1642432495181,10.7526,142.87,142.78,49.65399548]
[1642432495383,10.7526,142.87,142.78,49.90399548]
[1642432495581,10.5026,142.87,142.78,55.86599548]
[1642432495782,84.2524,142.92,142.78,55.86599548]
[1642432495981,49.2453,142.92,142.78,71.87054208]
[1642432496184,49.2453,142.92,142.78,65.87054208]
[1642432496584,21.72943179,142.91,142.78,65.87054208]
[1642432496783,32.22943179,142.91,142.78,76.37314208]
[1642432498186,10.7508,142.9,142.78,76.37314208]
[1642432499687,10.7508,142.9,142.78,68.84659548]
[1642432500389,80.5308,142.9,142.78,68.84659548]
[1642432500589,10.7508,142.9,142.78,68.84659548]
[1642432500787,10.7508,142.9,142.78,68.59659548]
[1642432501288,10.7508,142.9,142.78,18.9426]
[1642432501489,12.50699958,142.9,142.78,8.44]
[1642432501687,21.25999958,142.9,142.73,6.0]
[1642432501891,8.44,142.89,142.76,6.0]
[1642432502089,10.507,142.86,142.73,6.0]
[1642432502291,5.6047368,142.85,142.73,41.54419854]
[1642432502489,7.61093638,142.85,142.72,10.5067]
[1642432502892,1.75619958,142.84,142.69,8.44]
[1642432503290,0.25,142.83,142.69,8.44]
[1642432503590,21.72943179,142.8,142.7,46.08435683]
[1642432503790,0.25,142.79,142.7,46.08435683]
[1642432504891,0.25,142.79,142.7,35.57605683]
[1642432505093,10.5092,142.78,142.69,8.44]
[1642432505292,0.25,142.77,142.69,8.44]
[1642432505496,0.25,142.77,142.7,0.25]
[1642432505694,10.5092,142.78,142.7,0.25]
[1642432506019,10.5092,142.78,142.7,45.28708633]
[1642432506692,10.5092,142.78,142.7,55.79558633]